[Event "Sabato rapido!"]
[Site "Chess.com"]
[Date "2020.05.02"]
[Round "4"]
[White "fausto2p"]
[Black "bellapero"]
[Result "1/2-1/2"]
[WhiteElo "1018"]
[BlackElo "1311"]
[TimeControl "720+3"]
[EndTime "7:41:26 PDT"]
[Termination "Partita patta per ripetizione di mosse"]

1. d4 {[%clk 0:12:02.9]} 1... d5 {[%clk 0:11:55.7]} 2. c4 {[%clk 0:12:04.5]}
2... e6 {[%clk 0:11:56.2]} 3. Nf3 {[%clk 0:12:05]} 3... Nc6 {[%clk 0:11:53.9]}
4. Nc3 {[%clk 0:12:05.3]} 4... Nf6 {[%clk 0:11:49.7]} 5. Bg5 {[%clk 0:12:00]}
5... g6 {[%clk 0:11:46.7]} 6. e4 {[%clk 0:11:30.3]} 6... h6 {[%clk 0:11:15]} 7.
Bxf6 {[%clk 0:10:55.5]} 7... Qxf6 {[%clk 0:11:13.3]} 8. e5 {[%clk 0:10:52.5]}
8... Qe7 {[%clk 0:10:21.8]} 9. cxd5 {[%clk 0:10:35.4]} 9... exd5 {[%clk
0:10:07.3]} 10. Nxd5 {[%clk 0:10:33.5]} 10... Qe6 {[%clk 0:09:33.3]} 11. Nxc7+
{[%clk 0:10:28.4]} 11... Kd7 {[%clk 0:08:20.2]} 12. Nxe6 {[%clk 0:10:28]} 12...
fxe6 {[%clk 0:08:18.9]} 13. Bb5 {[%clk 0:10:22.1]} 13... a6 {[%clk 0:08:14.7]}
14. Bxc6+ {[%clk 0:10:23.3]} 14... bxc6 {[%clk 0:08:14.2]} 15. O-O {[%clk
0:10:16.7]} 15... Rb8 {[%clk 0:07:35.5]} 16. b3 {[%clk 0:10:11.8]} 16... Rg8
{[%clk 0:07:30.9]} 17. Rc1 {[%clk 0:09:56.6]} 17... Bb7 {[%clk 0:07:26.1]} 18.
Rc4 {[%clk 0:09:28]} 18... a5 {[%clk 0:07:15.3]} 19. Rc3 {[%clk 0:09:17.1]}
19... Bb4 {[%clk 0:07:12]} 20. Rc2 {[%clk 0:08:48]} 20... Rbf8 {[%clk
0:07:05.5]} 21. h3 {[%clk 0:08:41.8]} 21... h5 {[%clk 0:06:54.8]} 22. h4 {[%clk
0:08:17.5]} 22... Be7 {[%clk 0:06:49.2]} 23. Qe1 {[%clk 0:07:16.2]} 23... Ra8
{[%clk 0:06:38.1]} 24. Qe3 {[%clk 0:06:37.2]} 24... Bb4 {[%clk 0:06:25.2]} 25.
Ng5 {[%clk 0:06:21.3]} 25... Rab8 {[%clk 0:06:15.7]} 26. Qh3 {[%clk 0:06:10.1]}
26... Rge8 {[%clk 0:06:04.8]} 27. Rd2 {[%clk 0:06:05.4]} 27... Bxd2 {[%clk
0:05:58.8]} 28. Qf3 {[%clk 0:05:41.3]} 28... c5 {[%clk 0:05:33.7]} 29. Qf7+
{[%clk 0:05:31.5]} 29... Re7 {[%clk 0:05:21.3]} 30. Qxg6 {[%clk 0:05:26.4]}
30... cxd4 {[%clk 0:05:16.9]} 31. Rd1 {[%clk 0:05:20.4]} 31... Bc3 {[%clk
0:05:11.5]} 32. Nf3 {[%clk 0:05:01.4]} 32... Bxf3 {[%clk 0:05:06.4]} 33. gxf3
{[%clk 0:04:59.6]} 33... Rf8 {[%clk 0:04:55]} 34. Rd3 {[%clk 0:04:49.3]} 34...
Rf5 {[%clk 0:04:37.2]} 35. Kf1 {[%clk 0:04:15.5]} 35... Rxe5 {[%clk 0:04:29.1]}
36. Rd1 {[%clk 0:03:28.6]} 36... Rf5 {[%clk 0:04:22.7]} 37. Qg3 {[%clk
0:02:35.2]} 37... Ref7 {[%clk 0:04:10.8]} 38. Rd3 {[%clk 0:01:53]} 38... Rf4
{[%clk 0:03:17.9]} 39. Qg6 {[%clk 0:01:24.9]} 39... R4f5 {[%clk 0:03:00.5]} 40.
Qg3 {[%clk 0:01:17.3]} 40... Rf4 {[%clk 0:02:56.1]} 41. Qg6 {[%clk 0:01:18.5]}
41... R4f5 {[%clk 0:02:50.4]} 42. Qg3 {[%clk 0:01:18.4]} 1/2-1/2

[Event "Sabato rapido!"]
[Site "Chess.com"]
[Date "2020.05.02"]
[Round "4"]
[White "caramante"]
[Black "sergiodone"]
[Result "1/2-1/2"]
[WhiteElo "1517"]
[BlackElo "1483"]
[TimeControl "720+3"]
[EndTime "7:42:39 PDT"]
[Termination "Partita patta per stallo"]

1. Nf3 {[%clk 0:11:55.8]} 1... c5 {[%clk 0:12:00.2]} 2. c4 {[%clk 0:11:54]} 2...
Nc6 {[%clk 0:11:52.7]} 3. Nc3 {[%clk 0:11:55.5]} 3... Nf6 {[%clk 0:11:52.6]} 4.
d3 {[%clk 0:11:56.2]} 4... d6 {[%clk 0:11:51.5]} 5. e3 {[%clk 0:11:58]} 5... g6
{[%clk 0:11:52.8]} 6. Bd2 {[%clk 0:11:59]} 6... Bg7 {[%clk 0:11:54.4]} 7. a3
{[%clk 0:12:00.3]} 7... a6 {[%clk 0:11:55.2]} 8. Rb1 {[%clk 0:12:01.7]} 8... d5
{[%clk 0:11:34.5]} 9. cxd5 {[%clk 0:11:59.1]} 9... Nxd5 {[%clk 0:11:35.2]} 10.
Be2 {[%clk 0:11:56.7]} 10... O-O {[%clk 0:11:25.1]} 11. O-O {[%clk 0:11:53.9]}
11... Nf6 {[%clk 0:11:17.3]} 12. Qc2 {[%clk 0:11:49.2]} 12... e6 {[%clk
0:11:15.1]} 13. Rfd1 {[%clk 0:11:39.3]} 13... b6 {[%clk 0:11:08.8]} 14. Na4
{[%clk 0:11:04.8]} 14... Bb7 {[%clk 0:10:47.6]} 15. Qb3 {[%clk 0:10:56.1]} 15...
Rb8 {[%clk 0:09:36.6]} 16. Qxb6 {[%clk 0:10:33]} 16... Qxb6 {[%clk 0:08:13.5]}
17. Nxb6 {[%clk 0:10:32.9]} 17... a5 {[%clk 0:07:40.8]} 18. Bc3 {[%clk
0:10:31.3]} 18... Ba6 {[%clk 0:07:28.9]} 19. Bxf6 {[%clk 0:10:24.8]} 19... Rxb6
{[%clk 0:07:26.1]} 20. Bxg7 {[%clk 0:10:25]} 20... Kxg7 {[%clk 0:07:27]} 21.
Rdc1 {[%clk 0:10:17.3]} 21... Ne7 {[%clk 0:06:38.9]} 22. h3 {[%clk 0:09:43.2]}
22... Rc8 {[%clk 0:06:34]} 23. Ne5 {[%clk 0:09:36.7]} 23... Rb3 {[%clk
0:06:23.9]} 24. Rc3 {[%clk 0:09:18.1]} 24... Rcb8 {[%clk 0:06:11.1]} 25. Rxb3
{[%clk 0:09:18.9]} 25... Rxb3 {[%clk 0:06:12.4]} 26. Bd1 {[%clk 0:09:19.3]}
26... Rb7 {[%clk 0:06:00.7]} 27. Nc4 {[%clk 0:08:45.2]} 27... Bxc4 {[%clk
0:05:52.3]} 28. dxc4 {[%clk 0:08:44.7]} 28... Nc6 {[%clk 0:05:47.1]} 29. Ba4
{[%clk 0:08:37.7]} 29... Ne5 {[%clk 0:05:47.1]} 30. Bb5 {[%clk 0:08:34]} 30...
Rc7 {[%clk 0:05:48.8]} 31. Rd1 {[%clk 0:08:29.1]} 31... g5 {[%clk 0:05:23.9]}
32. f3 {[%clk 0:08:26.7]} 32... Kf6 {[%clk 0:05:24]} 33. Kf2 {[%clk 0:08:28]}
33... h5 {[%clk 0:05:16.8]} 34. g3 {[%clk 0:08:22.8]} 34... h4 {[%clk
0:04:48.1]} 35. gxh4 {[%clk 0:07:50.5]} 35... gxh4 {[%clk 0:04:49.1]} 36. f4
{[%clk 0:07:48.1]} 36... Ng6 {[%clk 0:04:47.9]} 37. Kf3 {[%clk 0:07:41.3]} 37...
Ne7 {[%clk 0:04:38.1]} 38. e4 {[%clk 0:07:39.8]} 38... Nc6 {[%clk 0:04:29.5]}
39. Bxc6 {[%clk 0:07:31.4]} 39... Rxc6 {[%clk 0:04:30.4]} 40. Kg4 {[%clk
0:07:32.9]} 40... Kg6 {[%clk 0:03:50.1]} 41. Kxh4 {[%clk 0:07:27.7]} 41... a4
{[%clk 0:03:48.1]} 42. Kg4 {[%clk 0:07:23.2]} 42... Rb6 {[%clk 0:03:47]} 43. Rd2
{[%clk 0:07:22.8]} 43... f5+ {[%clk 0:03:37.4]} 44. exf5+ {[%clk 0:07:22.7]}
44... exf5+ {[%clk 0:03:39.3]} 45. Kh4 {[%clk 0:07:22.6]} 45... Kf6 {[%clk
0:03:17.3]} 46. Rd5 {[%clk 0:07:04.2]} 46... Rxb2 {[%clk 0:03:03.7]} 47. Rxc5
{[%clk 0:07:05.5]} 47... Rb3 {[%clk 0:03:05.2]} 48. Rc6+ {[%clk 0:07:03.1]}
48... Kf7 {[%clk 0:03:04.9]} 49. c5 {[%clk 0:07:01.2]} 49... Rxa3 {[%clk
0:03:06]} 50. Rc7+ {[%clk 0:07:01.7]} 50... Kf6 {[%clk 0:03:06.6]} 51. c6 {[%clk
0:07:03.3]} 51... Rc3 {[%clk 0:03:08.2]} 52. Ra7 {[%clk 0:07:00.1]} 52... a3
{[%clk 0:03:06.8]} 53. c7 {[%clk 0:07:00]} 53... a2 {[%clk 0:03:08.5]} 54. Ra6+
{[%clk 0:06:52.5]} 54... Kf7 {[%clk 0:03:07.3]} 55. Kg5 {[%clk 0:06:47.6]} 55...
a1=Q {[%clk 0:02:53.6]} 56. Rxa1 {[%clk 0:06:47.4]} 56... Rxc7 {[%clk
0:02:55.2]} 57. Kxf5 {[%clk 0:06:48.8]} 57... Rc5+ {[%clk 0:02:34.9]} 58. Kg4
{[%clk 0:06:46.9]} 58... Kg6 {[%clk 0:02:33.8]} 59. h4 {[%clk 0:06:47.9]} 59...
Rb5 {[%clk 0:02:23.1]} 60. Ra6+ {[%clk 0:06:48]} 60... Kh7 {[%clk 0:02:22.4]}
61. f5 {[%clk 0:06:48.4]} 61... Kg7 {[%clk 0:02:15.4]} 62. Kg5 {[%clk
0:06:45.6]} 62... Rb1 {[%clk 0:02:11.1]} 63. Ra7+ {[%clk 0:06:45.9]} 63... Kg8
{[%clk 0:02:02.4]} 64. h5 {[%clk 0:06:42.7]} 64... Rb2 {[%clk 0:01:36.4]} 65. f6
{[%clk 0:06:30.3]} 65... Rg2+ {[%clk 0:01:32.3]} 66. Kf5 {[%clk 0:06:31.1]}
66... Rf2+ {[%clk 0:01:33.8]} 67. Kg6 {[%clk 0:06:29.7]} 67... Rg2+ {[%clk
0:01:34.9]} 68. Kh6 {[%clk 0:06:29]} 68... Rg4 {[%clk 0:01:21.4]} 69. Rg7+
{[%clk 0:06:19.6]} 69... Kh8 {[%clk 0:01:00.9]} 70. f7 {[%clk 0:05:57.1]} 70...
Rg6+ {[%clk 0:00:53.6]} 71. hxg6 {[%clk 0:05:04.4]} 1/2-1/2

[Event "Sabato rapido!"]
[Site "Chess.com"]
[Date "2020.05.02"]
[Round "4"]
[White "Piccolorso"]
[Black "sirmale49"]
[Result "0-1"]
[WhiteElo "1208"]
[BlackElo "1389"]
[TimeControl "720+3"]
[EndTime "7:45:31 PDT"]
[Termination "sirmale49 ha vinto per abbandono"]

1. e4 {[%clk 0:12:00.9]} 1... e5 {[%clk 0:11:58.9]} 2. Nf3 {[%clk 0:12:01.6]}
2... Nc6 {[%clk 0:11:59.9]} 3. Bb5 {[%clk 0:12:01.7]} 3... d6 {[%clk 0:11:57.2]}
4. d4 {[%clk 0:12:02.3]} 4... Bd7 {[%clk 0:11:55.2]} 5. Nc3 {[%clk 0:11:09.5]}
5... Nf6 {[%clk 0:11:36.7]} 6. O-O {[%clk 0:10:24.9]} 6... a6 {[%clk 0:11:35.7]}
7. Bxc6 {[%clk 0:09:55.5]} 7... Bxc6 {[%clk 0:11:09.7]} 8. d5 {[%clk 0:09:43.4]}
8... Bd7 {[%clk 0:11:04.6]} 9. Re1 {[%clk 0:09:37]} 9... Bg4 {[%clk 0:10:58.8]}
10. Qd3 {[%clk 0:09:17.9]} 10... h6 {[%clk 0:10:46.3]} 11. h3 {[%clk 0:09:18.9]}
11... Bd7 {[%clk 0:10:38.2]} 12. a4 {[%clk 0:08:53.9]} 12... g5 {[%clk
0:10:22.4]} 13. Nh2 {[%clk 0:08:31.4]} 13... Rg8 {[%clk 0:10:14.7]} 14. Bd2
{[%clk 0:07:11.9]} 14... Qc8 {[%clk 0:09:39.4]} 15. Re3 {[%clk 0:07:02.8]} 15...
g4 {[%clk 0:09:32.1]} 16. h4 {[%clk 0:07:01.5]} 16... h5 {[%clk 0:09:26.1]} 17.
g3 {[%clk 0:07:02.8]} 17... Bh6 {[%clk 0:09:10.6]} 18. Re2 {[%clk 0:07:01]}
18... Bxd2 {[%clk 0:08:49.1]} 19. Qxd2 {[%clk 0:06:52.5]} 19... c6 {[%clk
0:08:17.4]} 20. b3 {[%clk 0:06:44.5]} 20... c5 {[%clk 0:07:49.9]} 21. Nf1 {[%clk
0:06:21.6]} 21... c4 {[%clk 0:07:40.6]} 22. Rc1 {[%clk 0:06:07.9]} 22... Qc5
{[%clk 0:07:03.3]} 23. Ne3 {[%clk 0:05:58.7]} 23... b5 {[%clk 0:06:41.8]} 24.
axb5 {[%clk 0:05:43.7]} 24... axb5 {[%clk 0:06:40.1]} 25. Ree1 {[%clk 0:05:29]}
25... Rc8 {[%clk 0:06:32.8]} 26. bxc4 {[%clk 0:05:28.2]} 26... bxc4 {[%clk
0:06:20.9]} 27. Qe2 {[%clk 0:04:36.7]} 27... Qd4 {[%clk 0:05:50.5]} 28. Ncd1
{[%clk 0:04:30.6]} 28... Nxe4 {[%clk 0:05:35.7]} 29. c3 {[%clk 0:04:11.5]} 29...
Qd3 {[%clk 0:05:14.2]} 30. Qxd3 {[%clk 0:04:02.1]} 30... cxd3 {[%clk 0:05:12.1]}
31. Rf1 {[%clk 0:03:33.5]} 31... Nd2 {[%clk 0:04:50.5]} 32. Re1 {[%clk
0:03:30.9]} 32... Nf3+ {[%clk 0:04:49.4]} 33. Kf1 {[%clk 0:03:32.5]} 33... Nxe1
{[%clk 0:04:44.7]} 34. Kxe1 {[%clk 0:03:34.1]} 34... f5 {[%clk 0:04:17.8]} 35.
Kd2 {[%clk 0:03:21.9]} 35... f4 {[%clk 0:03:59.6]} 36. gxf4 {[%clk 0:03:22.2]}
36... exf4 {[%clk 0:04:00]} 37. Ng2 {[%clk 0:03:18.5]} 37... Rf8 {[%clk
0:03:48.3]} 38. Kxd3 {[%clk 0:02:59.3]} 38... Bf5+ {[%clk 0:03:47.3]} 39. Kd4
{[%clk 0:02:53.2]} 39... Bd7 {[%clk 0:03:22.5]} 40. Nb2 {[%clk 0:02:47.6]} 40...
f3 {[%clk 0:02:26.6]} 41. Ne3 {[%clk 0:02:46.3]} 41... Rf4+ {[%clk 0:02:25.2]}
42. Kd3 {[%clk 0:02:35.1]} 42... Bf5+ {[%clk 0:02:01]} 43. Kd2 {[%clk
0:02:35.1]} 43... Bg6 {[%clk 0:01:23.9]} 44. Nd3 {[%clk 0:02:21.2]} 44... Bxd3
{[%clk 0:01:17.4]} 45. Kxd3 {[%clk 0:02:21.2]} 45... Kd7 {[%clk 0:00:57.8]} 46.
c4 {[%clk 0:02:11.1]} 46... Ra8 {[%clk 0:00:43.9]} 47. c5 {[%clk 0:02:00.2]}
47... Ra3+ {[%clk 0:00:43.2]} 48. Rc3 {[%clk 0:02:01.2]} 48... Rxc3+ {[%clk
0:00:42.6]} 49. Kxc3 {[%clk 0:02:02.2]} 49... dxc5 {[%clk 0:00:42.6]} 50. Nf1
{[%clk 0:01:54.8]} 50... Rd4 {[%clk 0:00:38.4]} 51. Ne3 {[%clk 0:01:51.8]} 51...
Re4 {[%clk 0:00:38.2]} 52. Kd3 {[%clk 0:01:48.7]} 52... Re5 {[%clk 0:00:36.4]}
53. Kd2 {[%clk 0:01:33.5]} 53... Rxe3 {[%clk 0:00:37.4]} 54. Kxe3 {[%clk
0:01:34.5]} 54... Kd6 {[%clk 0:00:39]} 55. Kd3 {[%clk 0:01:33.2]} 55... Kxd5
{[%clk 0:00:40.4]} 0-1

[Event "Sabato rapido!"]
[Site "Chess.com"]
[Date "2020.05.02"]
[Round "5"]
[White "Mrtre7"]
[Black "ottovolante"]
[Result "1-0"]
[WhiteElo "1428"]
[BlackElo "1008"]
[TimeControl "720+3"]
[EndTime "7:52:26 PDT"]
[Termination "Mrtre7 ha vinto per scaccomatto"]

1. d4 {[%clk 0:12:02.9]} 1... e6 {[%clk 0:11:59.4]} 2. c4 {[%clk 0:12:05]} 2...
d5 {[%clk 0:12:00.8]} 3. Nc3 {[%clk 0:12:04.7]} 3... dxc4 {[%clk 0:12:00.5]} 4.
e4 {[%clk 0:12:04.4]} 4... e5 {[%clk 0:11:56]} 5. d5 {[%clk 0:12:05.5]} 5... Bb4
{[%clk 0:11:51.3]} 6. Qa4+ {[%clk 0:12:02.3]} 6... Bd7 {[%clk 0:11:37]} 7. Qxb4
{[%clk 0:12:04]} 7... a5 {[%clk 0:11:37.1]} 8. Qxc4 {[%clk 0:11:38.6]} 8... Nf6
{[%clk 0:11:21.8]} 9. Nf3 {[%clk 0:11:38.1]} 9... O-O {[%clk 0:11:16.6]} 10. Bg5
{[%clk 0:11:38.9]} 10... h6 {[%clk 0:11:16.5]} 11. Bh4 {[%clk 0:11:35.2]} 11...
Qe8 {[%clk 0:10:50.7]} 12. Qxc7 {[%clk 0:11:19.8]} 12... Na6 {[%clk 0:10:51.4]}
13. Qxe5 {[%clk 0:11:19.4]} 13... Qxe5 {[%clk 0:10:41.8]} 14. Nxe5 {[%clk
0:11:21.4]} 14... Nc5 {[%clk 0:10:39.8]} 15. Bxf6 {[%clk 0:11:05.8]} 15... gxf6
{[%clk 0:10:38.8]} 16. Nxd7 {[%clk 0:11:06.4]} 16... Nxd7 {[%clk 0:10:39.9]} 17.
Bb5 {[%clk 0:11:07.7]} 17... Ne5 {[%clk 0:10:38.3]} 18. f4 {[%clk 0:10:48.1]}
18... Ng4 {[%clk 0:10:32.1]} 19. Ke2 {[%clk 0:10:41]} 19... h5 {[%clk
0:10:29.4]} 20. h3 {[%clk 0:10:41.5]} 20... Nh6 {[%clk 0:10:30]} 21. Rhg1 {[%clk
0:10:43.6]} 21... f5 {[%clk 0:10:31.3]} 22. e5 {[%clk 0:10:42.9]} 22... f6
{[%clk 0:10:30.3]} 23. e6 {[%clk 0:10:44.2]} 23... b6 {[%clk 0:10:19.9]} 24. d6
{[%clk 0:10:42.3]} 24... Rad8 {[%clk 0:10:18.9]} 25. e7 {[%clk 0:10:33.9]} 25...
Rf7 {[%clk 0:10:18.6]} 26. exd8=Q+ {[%clk 0:10:34.9]} 26... Kg7 {[%clk
0:10:14.8]} 27. Be8 {[%clk 0:10:25.9]} 27... Ng4 {[%clk 0:10:10.9]} 28. Bxf7
{[%clk 0:10:24.4]} 28... Nf2 {[%clk 0:10:11.2]} 29. Qg8+ {[%clk 0:10:23.8]}
29... Kh6 {[%clk 0:10:11.2]} 30. Qh8# {[%clk 0:10:23.3]} 1-0

[Event "Sabato rapido!"]
[Site "Chess.com"]
[Date "2020.05.02"]
[Round "5"]
[White "sirmale49"]
[Black "crippo"]
[Result "1-0"]
[WhiteElo "1400"]
[BlackElo "1458"]
[TimeControl "720+3"]
[EndTime "7:54:56 PDT"]
[Termination "sirmale49 ha vinto per scaccomatto"]

1. f4 {[%clk 0:11:56.7]} 1... Nf6 {[%clk 0:11:15]} 2. Nf3 {[%clk 0:11:44]} 2...
d5 {[%clk 0:11:13.2]} 3. g3 {[%clk 0:11:45.9]} 3... c5 {[%clk 0:11:13.6]} 4. e3
{[%clk 0:11:47.5]} 4... Nc6 {[%clk 0:11:15.5]} 5. Bg2 {[%clk 0:11:47.9]} 5... h5
{[%clk 0:11:16.3]} 6. h4 {[%clk 0:11:44.5]} 6... e6 {[%clk 0:11:16.9]} 7. Bh3
{[%clk 0:11:26.1]} 7... Ne4 {[%clk 0:11:18]} 8. Rg1 {[%clk 0:11:19.6]} 8... Bd6
{[%clk 0:11:14.2]} 9. d3 {[%clk 0:11:11.4]} 9... Nf6 {[%clk 0:11:14.8]} 10. Nc3
{[%clk 0:11:03.7]} 10... d4 {[%clk 0:11:15.4]} 11. Ne4 {[%clk 0:10:55.8]} 11...
Nxe4 {[%clk 0:11:12.3]} 12. dxe4 {[%clk 0:10:57]} 12... dxe3 {[%clk 0:11:13.5]}
13. Bxe3 {[%clk 0:10:54.5]} 13... Qb6 {[%clk 0:11:02.8]} 14. Qxd6 {[%clk
0:10:35.3]} 14... Qb4+ {[%clk 0:11:03]} 15. Qd2 {[%clk 0:09:51.9]} 15... Qxe4
{[%clk 0:11:00.7]} 16. O-O-O {[%clk 0:09:42.4]} 16... Qxf3 {[%clk 0:11:01.3]}
17. Bg2 {[%clk 0:09:19.3]} 17... Qxe3 {[%clk 0:10:39.8]} 18. Bxc6+ {[%clk
0:09:17.7]} 18... bxc6 {[%clk 0:10:40.7]} 19. Qxe3 {[%clk 0:09:16.9]} 19... O-O
{[%clk 0:10:41.4]} 20. g4 {[%clk 0:09:12.2]} 20... hxg4 {[%clk 0:10:41.1]} 21.
Rxg4 {[%clk 0:09:12.3]} 21... e5 {[%clk 0:10:42.3]} 22. Rg3 {[%clk 0:08:45.4]}
22... exf4 {[%clk 0:10:42.5]} 23. Qxf4 {[%clk 0:08:42.8]} 23... Be6 {[%clk
0:10:44.4]} 24. Qg5 {[%clk 0:08:39]} 24... g6 {[%clk 0:10:42.1]} 25. h5 {[%clk
0:08:40]} 25... Bxa2 {[%clk 0:10:30.1]} 26. h6 {[%clk 0:08:37.8]} 26... Kh7
{[%clk 0:10:30.2]} 27. Qf6 {[%clk 0:08:33.3]} 27... Rg8 {[%clk 0:10:27.1]} 28.
Rd7 {[%clk 0:08:21.3]} 28... Raf8 {[%clk 0:10:22]} 29. b3 {[%clk 0:08:22.5]}
29... c4 {[%clk 0:10:19.9]} 30. Rxf7+ {[%clk 0:08:23.5]} 30... Rxf7 {[%clk
0:10:20.5]} 31. Qxf7+ {[%clk 0:08:25]} 31... Kh8 {[%clk 0:10:22.4]} 32. Rxg6
{[%clk 0:08:16.8]} 32... Rxg6 {[%clk 0:10:23.7]} 33. Qxg6 {[%clk 0:08:17.8]}
33... cxb3 {[%clk 0:10:25.5]} 34. Qg7# {[%clk 0:08:18.1]} 1-0

[Event "Sabato rapido!"]
[Site "Chess.com"]
[Date "2020.05.02"]
[Round "5"]
[White "laremaro"]
[Black "pedrak"]
[Result "1/2-1/2"]
[WhiteElo "1728"]
[BlackElo "1641"]
[TimeControl "720+3"]
[EndTime "8:05:15 PDT"]
[Termination "Patta d'accordo"]

1. e4 {[%clk 0:11:59]} 1... d6 {[%clk 0:12:00.5]} 2. d3 {[%clk 0:11:59]} 2...
Nf6 {[%clk 0:12:01.9]} 3. g3 {[%clk 0:11:59.8]} 3... g6 {[%clk 0:12:01.9]} 4.
Bg2 {[%clk 0:12:02.1]} 4... Bg7 {[%clk 0:12:03.4]} 5. Nd2 {[%clk 0:12:04.4]}
5... e5 {[%clk 0:12:04.2]} 6. Ngf3 {[%clk 0:12:00.9]} 6... O-O {[%clk
0:12:05.3]} 7. O-O {[%clk 0:11:59.3]} 7... h6 {[%clk 0:12:01.9]} 8. h3 {[%clk
0:11:59.2]} 8... Be6 {[%clk 0:12:02.7]} 9. c3 {[%clk 0:11:59.4]} 9... Qc8 {[%clk
0:12:03.6]} 10. Kh2 {[%clk 0:11:59.9]} 10... c6 {[%clk 0:12:03]} 11. Qe2 {[%clk
0:11:44.6]} 11... Nh7 {[%clk 0:12:03.4]} 12. d4 {[%clk 0:11:33.9]} 12... Nd7
{[%clk 0:12:02.8]} 13. dxe5 {[%clk 0:11:01.9]} 13... dxe5 {[%clk 0:12:02]} 14.
Nb3 {[%clk 0:10:24.1]} 14... Qc7 {[%clk 0:11:58.9]} 15. Be3 {[%clk 0:10:23.3]}
15... Rfd8 {[%clk 0:11:38.4]} 16. Nc5 {[%clk 0:10:08.8]} 16... Nxc5 {[%clk
0:11:34.9]} 17. Bxc5 {[%clk 0:10:10.5]} 17... Nf8 {[%clk 0:11:26.6]} 18. b3
{[%clk 0:10:05.4]} 18... b6 {[%clk 0:11:16.3]} 19. Be3 {[%clk 0:10:06.8]} 19...
Rd7 {[%clk 0:11:16.3]} 20. Rfd1 {[%clk 0:10:09.2]} 20... Rad8 {[%clk 0:11:17.4]}
21. Rxd7 {[%clk 0:10:10.2]} 21... Qxd7 {[%clk 0:11:18.8]} 22. Ne1 {[%clk
0:09:56.9]} 22... Nh7 {[%clk 0:10:58.8]} 23. Nc2 {[%clk 0:09:49.1]} 23... Ng5
{[%clk 0:10:57.5]} 24. Bxg5 {[%clk 0:09:43.8]} 24... hxg5 {[%clk 0:10:58.4]} 25.
Ne3 {[%clk 0:09:40]} 25... Bf8 {[%clk 0:10:51.4]} 26. Rd1 {[%clk 0:09:37.4]}
26... Qc7 {[%clk 0:10:47]} 27. Ng4 {[%clk 0:09:18.6]} 27... Rxd1 {[%clk
0:10:33.7]} 28. Qxd1 {[%clk 0:09:19]} 28... Kg7 {[%clk 0:10:35]} 29. Kg1 {[%clk
0:08:38.2]} 29... Be7 {[%clk 0:10:20.7]} 30. Kf1 {[%clk 0:08:36]} 30... c5
{[%clk 0:10:17.3]} 31. c4 {[%clk 0:08:23.5]} 31... f5 {[%clk 0:09:59.5]} 32. Ne3
{[%clk 0:08:16.9]} 32... Qc8 {[%clk 0:09:11.9]} 33. Nd5 {[%clk 0:08:00.1]} 33...
Bf8 {[%clk 0:09:00.3]} 34. Qd2 {[%clk 0:07:52.3]} 34... f4 {[%clk 0:08:53.7]}
35. g4 {[%clk 0:07:49]} 35... Qd7 {[%clk 0:08:23.7]} 36. Bf3 {[%clk 0:07:48.8]}
36... Bd6 {[%clk 0:08:20.2]} 37. Kg2 {[%clk 0:07:17.1]} 37... Bc7 {[%clk
0:08:16.5]} 38. Qd1 {[%clk 0:06:59.3]} 38... Bd8 {[%clk 0:08:14.8]} 39. Kf1
{[%clk 0:06:58.2]} 39... b5 {[%clk 0:08:12.1]} 40. Kg2 {[%clk 0:06:38.5]} 40...
bxc4 {[%clk 0:08:11.8]} 41. bxc4 {[%clk 0:06:36.4]} 41... Ba5 {[%clk 0:08:01.2]}
42. Qb3 {[%clk 0:06:30.1]} 42... Bd8 {[%clk 0:07:40.8]} 43. Qb8 {[%clk
0:06:12.5]} 43... Bf6 {[%clk 0:07:29.1]} 44. Qb5 {[%clk 0:05:25.3]} 44... Qxb5
{[%clk 0:07:04.7]} 45. cxb5 {[%clk 0:05:26.7]} 45... Bd8 {[%clk 0:07:01]} 46.
Kf1 {[%clk 0:05:16.5]} 46... Ba5 {[%clk 0:06:44]} 47. Be2 {[%clk 0:05:06.9]}
47... Kf7 {[%clk 0:06:40.2]} 48. Bc4 {[%clk 0:04:57.6]} 48... Bxd5 {[%clk
0:06:14.4]} 49. Bxd5+ {[%clk 0:04:52.8]} 49... Kf6 {[%clk 0:06:16.1]} 50. Ke2
{[%clk 0:04:55.2]} 50... Bb4 {[%clk 0:06:09.1]} 51. Kd3 {[%clk 0:04:55.9]} 51...
Ke7 {[%clk 0:06:06.5]} 52. f3 {[%clk 0:04:58.2]} 52... Ba5 {[%clk 0:06:01.3]}
53. Kc4 {[%clk 0:05:00]} 53... Bb6 {[%clk 0:06:02.7]} 54. a4 {[%clk 0:04:53]}
54... Kd6 {[%clk 0:05:57.6]} 55. Bf7 {[%clk 0:04:49.9]} 55... Bd8 {[%clk
0:05:58.5]} 56. Bxg6 {[%clk 0:04:48.3]} 56... Bb6 {[%clk 0:06:00]} 57. Bf7
{[%clk 0:04:48]} 57... Bd8 {[%clk 0:06:01.4]} 1/2-1/2